[Event "Aimchess US Rapid Prelims 2021"]
[Site "Chess24"]
[Date "2021.08.25"]
[Round "2.5"]
[White "Naroditsky, Daniel"]
[Black "Liang, Awonder"]
[Result "0-1"]
[ECO "A01"]
[WhiteElo "2623"]
[BlackElo "2587"]
[Annotator "ChessBase"]
[PlyCount "78"]
[EventDate "2021.08.28"]
[EventType "tourn"]
[EventCountry "NET"]
[Tiebreak "Direct encounter+Number of wins+Koya"]
[SourceTitle "playchess.com"]
[Source "ChessBase"]
[SourceQuality "1"]
[TimeControl "900+10"]

1. b3 {[%emt 0:00:00]} e5 {[%emt 0:00:00]} 2. Bb2 {[%emt 0:00:05]} Nc6 {
[%emt 0:00:02]} 3. c4 {[%emt 0:00:00]} Nge7 {[%emt 0:00:01]} 4. e3 {[%emt 0:00:
18]} d5 {[%emt 0:00:03]} 5. cxd5 {[%emt 0:00:13]} Nxd5 {[%emt 0:00:01]} 6. a3 {
[%emt 0:00:02]} Bd6 {[%emt 0:00:05]} 7. Qc2 {[%emt 0:00:07]} Bd7 {[%emt 0:00:
08]} 8. Nf3 {[%emt 0:00:45]} Qe7 {[%emt 0:00:01]} 9. d3 {[%emt 0:00:45]} O-O-O
{[%emt 0:00:03]} 10. b4 {[%emt 0:01:11]} f5 {[%emt 0:00:39]} 11. Nbd2 {[%emt 0:
00:26]} Rhf8 {[%emt 0:01:31]} 12. Nc4 {[%emt 0:01:53]} a6 {[%emt 0:01:50]} 13.
Be2 {[%emt 0:00:36]} Kb8 {[%emt 0:00:06]} 14. O-O {[%emt 0:01:36]} g5 {[%emt 0:
00:09]} 15. d4 {[%emt 0:00:48]} e4 {[%emt 0:00:49]} 16. Nfe5 {[%emt 0:02:17]}
Bxe5 {[%emt 0:00:50]} 17. Nxe5 {[%emt 0:00:09]} Nxe5 {[%emt 0:00:58]} 18. dxe5
{[%emt 0:00:00]} f4 {[%emt 0:00:01]} 19. Bd4 {[%emt 0:00:21]} f3 {[%emt 0:00:
38]} 20. Bc4 {[%emt 0:00:09]} Bc6 {[%emt 0:00:59]} 21. Bc5 {[%emt 0:02:09]} Qd7
{[%emt 0:00:11]} 22. Rfd1 {[%emt 0:01:51]} Qg4 {[%emt 0:01:02]} 23. Bf1 {
[%emt 0:00:01]} fxg2 {[%emt 0:02:50]} 24. Bxg2 {[%emt 0:00:40]} Nf4 {[%emt 0:
00:43]} 25. exf4 {[%emt 0:00:31]} e3 {[%emt 0:00:03]} 26. Rxd8+ {[%emt 0:01:08]
} Rxd8 {[%emt 0:00:01]} 27. fxe3 {[%emt 0:00:03]} gxf4 {[%emt 0:00:05]} 28. h3
{[%emt 0:00:36]} Qg7 {[%emt 0:01:25]} 29. exf4 {[%emt 0:00:12]} Rg8 {[%emt 0:
00:01]} 30. Ra2 {[%emt 0:00:17]} Qf7 {[%emt 0:02:14]} 31. Qb1 {[%emt 0:00:56]}
Qd5 {[%emt 0:00:15]} 32. Qc2 {[%emt 0:00:03]} Qe6 {[%emt 0:00:29]} 33. f5 {
[%emt 0:00:20]} Qxe5 {[%emt 0:00:09]} 34. Qd1 {[%emt 0:00:09]} b6 {[%emt 0:00:
18]} 35. Bd4 {[%emt 0:00:11]} Qd5 {[%emt 0:00:09]} 36. Qd2 {[%emt 0:00:06]}
Qxf5 {[%emt 0:00:20]} 37. Qc3 {[%emt 0:00:07]} Qe4 {[%emt 0:00:25]} 38. Kf1 {
[%emt 0:00:18]} Qb1+ {[%emt 0:00:10]} 39. Qe1 {[%emt 0:00:08]} Bb5+ {[%emt 0:
00:03]} 0-1

[Event "Aimchess US Rapid Prelims 2021"]
[Site "Chess24"]
[Date "2021.08.25"]
[Round "15.1"]
[White "Carlsen, Magnus"]
[Black "Duda, Jan-Krzysztof"]
[Result "1/2-1/2"]
[ECO "B22"]
[WhiteElo "2847"]
[BlackElo "2738"]
[Annotator "ChessBase"]
[PlyCount "248"]
[EventDate "2021.08.28"]
[EventType "tourn"]
[EventCountry "NET"]
[Tiebreak "Direct encounter+Number of wins+Koya"]
[SourceTitle "playchess.com"]
[Source "ChessBase"]
[SourceQuality "1"]
[TimeControl "900+10"]

1. e4 {[%emt 0:00:00]} c5 {[%emt 0:00:00]} 2. Nf3 {[%emt 0:00:02]} e6 {[%emt 0:
00:04]} 3. c3 {[%emt 0:00:04]} Nf6 {[%emt 0:00:04]} 4. e5 {[%emt 0:00:01]} Nd5
{[%emt 0:00:01]} 5. Bc4 {[%emt 0:00:04]} d6 {[%emt 0:00:28]} 6. d4 {[%emt 0:00:
05]} Nb6 {[%emt 0:00:45]} 7. Bb3 {[%emt 0:00:02]} cxd4 {[%emt 0:00:09]} 8. cxd4
{[%emt 0:00:01]} Bd7 {[%emt 0:00:10]} 9. O-O {[%emt 0:00:08]} Bc6 {[%emt 0:00:
02]} 10. Nc3 {[%emt 0:00:00]} Be7 {[%emt 0:00:16]} 11. exd6 {[%emt 0:00:05]}
Qxd6 {[%emt 0:00:05]} 12. Ne5 {[%emt 0:00:01]} N8d7 {[%emt 0:02:05]} 13. Nxc6 {
[%emt 0:00:03]} bxc6 {[%emt 0:00:00]} 14. Ne4 {[%emt 0:00:02]} Qb4 {[%emt 0:00:
02]} 15. a3 {[%emt 0:01:19]} Qb5 {[%emt 0:00:08]} 16. Nc3 {[%emt 0:00:09]} Qa6
{[%emt 0:00:40]} 17. Qg4 {[%emt 0:00:09]} Bf6 {[%emt 0:02:02]} 18. Ne4 {
[%emt 0:00:11]} O-O {[%emt 0:00:02]} 19. Bc2 {[%emt 0:00:47]} Qc4 {[%emt 0:01:
15]} 20. Nxf6+ {[%emt 0:00:45]} Nxf6 {[%emt 0:00:00]} 21. Qd1 {[%emt 0:00:01]}
Rfd8 {[%emt 0:00:17]} 22. Be3 {[%emt 0:00:02]} Qb5 {[%emt 0:01:35]} 23. Qc1 {
[%emt 0:00:02]} Nbd5 {[%emt 0:00:28]} 24. Bg5 {[%emt 0:00:13]} h6 {[%emt 0:00:
19]} 25. Bh4 {[%emt 0:00:06]} a5 {[%emt 0:00:08]} 26. Rd1 {[%emt 0:00:06]} Rdc8
{[%emt 0:00:39]} 27. Bg3 {[%emt 0:00:24]} c5 {[%emt 0:00:20]} 28. dxc5 {
[%emt 0:00:01]} Rxc5 {[%emt 0:00:03]} 29. Qd2 {[%emt 0:00:03]} Rac8 {[%emt 0:
00:09]} 30. Bd3 {[%emt 0:00:10]} Qb3 {[%emt 0:00:26]} 31. h3 {[%emt 0:00:02]}
a4 {[%emt 0:00:06]} 32. Bd6 {[%emt 0:00:14]} R5c6 {[%emt 0:00:11]} 33. Be5 {
[%emt 0:00:01]} Nd7 {[%emt 0:00:09]} 34. Bd4 {[%emt 0:00:02]} Nc5 {[%emt 0:00:
51]} 35. Bc2 {[%emt 0:00:17]} Qb5 {[%emt 0:00:02]} 36. Bxc5 {[%emt 0:00:41]}
Rxc5 {[%emt 0:00:00]} 37. Be4 {[%emt 0:00:07]} Qb6 {[%emt 0:01:05]} 38. Rac1 {
[%emt 0:00:06]} g5 {[%emt 0:00:44]} 39. Rxc5 {[%emt 0:00:03]} Rxc5 {[%emt 0:00:
00]} 40. Qd4 {[%emt 0:00:46]} Rc1 {[%emt 0:00:58]} 41. Bh7+ {[%emt 0:00:03]}
Kxh7 {[%emt 0:00:10]} 42. Qd3+ {[%emt 0:00:01]} Kg7 {[%emt 0:00:01]} 43. Rxc1 {
[%emt 0:00:00]} Qxb2 {[%emt 0:00:01]} 44. Rc2 {[%emt 0:00:29]} Qa1+ {[%emt 0:
01:02]} 45. Kh2 {[%emt 0:00:03]} h5 {[%emt 0:00:05]} 46. Rc4 {[%emt 0:00:14]}
Qe5+ {[%emt 0:00:19]} 47. Qg3 {[%emt 0:00:17]} Qf6 {[%emt 0:00:26]} 48. h4 {
[%emt 0:00:01]} g4 {[%emt 0:00:04]} 49. Rxa4 {[%emt 0:00:02]} e5 {[%emt 0:00:
22]} 50. Re4 {[%emt 0:00:09]} Nf4 {[%emt 0:00:02]} 51. a4 {[%emt 0:00:01]} Qd6
{[%emt 0:00:30]} 52. a5 {[%emt 0:00:12]} Qd5 {[%emt 0:00:28]} 53. Qe3 {[%emt 0:
00:56]} f5 {[%emt 0:00:25]} 54. Rxf4 {[%emt 0:00:02]} exf4 {[%emt 0:00:01]} 55.
Qe7+ {[%emt 0:00:01]} Kg8 {[%emt 0:00:07]} 56. Qg5+ {[%emt 0:00:47]} Kf8 {
[%emt 0:00:05]} 57. a6 {[%emt 0:00:12]} g3+ {[%emt 0:01:13]} 58. fxg3 {[%emt 0:
00:03]} f3 {[%emt 0:00:01]} 59. a7 {[%emt 0:00:42]} fxg2 {[%emt 0:01:34]} 60.
Qxh5 {[%emt 0:00:12]} Kg7 {[%emt 0:00:49]} 61. Qe2 {[%emt 0:00:23]} Qc5 {
[%emt 0:00:13]} 62. Kxg2 {[%emt 0:01:37]} Qxa7 {[%emt 0:00:02]} 63. Qe5+ {
[%emt 0:00:01]} Kg8 {[%emt 0:00:09]} 64. Qxf5 {[%emt 0:00:01]} Qb7+ {[%emt 0:
00:03]} 65. Kh2 {[%emt 0:00:06]} Kh8 {[%emt 0:00:04]} 66. Qe5+ {[%emt 0:00:08]}
Kh7 {[%emt 0:00:06]} 67. g4 {[%emt 0:00:02]} Qb3 {[%emt 0:00:38]} 68. h5 {
[%emt 0:00:09]} Kg8 {[%emt 0:00:19]} 69. Qf6 {[%emt 0:00:42]} Qd3 {[%emt 0:00:
20]} 70. Kg2 {[%emt 0:00:41]} Qe3 {[%emt 0:00:11]} 71. Qf3 {[%emt 0:01:05]} Qe5
{[%emt 0:00:04]} 72. Kh3 {[%emt 0:00:03]} Qg5 {[%emt 0:00:12]} 73. Qe4 {
[%emt 0:00:09]} Kh8 {[%emt 0:00:13]} 74. Kg3 {[%emt 0:00:04]} Qf6 {[%emt 0:00:
04]} 75. Qf4 {[%emt 0:00:04]} Qe7 {[%emt 0:00:09]} 76. Qd4+ {[%emt 0:00:21]}
Kg8 {[%emt 0:00:03]} 77. Kf4 {[%emt 0:00:17]} Qf7+ {[%emt 0:00:14]} 78. Kg5 {
[%emt 0:00:06]} Qe7+ {[%emt 0:00:01]} 79. Qf6 {[%emt 0:00:22]} Qe3+ {[%emt 0:
00:14]} 80. Kg6 {[%emt 0:00:23]} Qe4+ {[%emt 0:00:23]} 81. Qf5 {[%emt 0:00:02]}
Qc6+ {[%emt 0:00:09]} 82. Kg5 {[%emt 0:00:04]} Qc1+ {[%emt 0:00:03]} 83. Qf4 {
[%emt 0:00:17]} Qc5+ {[%emt 0:00:02]} 84. Kh4 {[%emt 0:00:12]} Qc6 {[%emt 0:00:
02]} 85. Qg5+ {[%emt 0:00:13]} Kh8 {[%emt 0:00:07]} 86. Qe5+ {[%emt 0:00:03]}
Kh7 {[%emt 0:00:21]} 87. Kg5 {[%emt 0:00:10]} Qh6+ {[%emt 0:00:04]} 88. Kf5 {
[%emt 0:00:02]} Qf8+ {[%emt 0:00:03]} 89. Ke4 {[%emt 0:00:08]} Qb4+ {[%emt 0:
00:07]} 90. Kf3 {[%emt 0:00:01]} Qa3+ {[%emt 0:00:23]} 91. Kg2 {[%emt 0:00:10]}
Qa6 {[%emt 0:00:14]} 92. Qe4+ {[%emt 0:00:28]} Kh8 {[%emt 0:00:08]} 93. g5 {
[%emt 0:00:17]} Qd6 {[%emt 0:00:26]} 94. Kh3 {[%emt 0:00:14]} Qd7+ {[%emt 0:00:
13]} 95. Kh4 {[%emt 0:00:06]} Qf7 {[%emt 0:00:10]} 96. Qd4+ {[%emt 0:00:18]}
Kg8 {[%emt 0:00:02]} 97. Qd8+ {[%emt 0:00:34]} Kg7 {[%emt 0:00:01]} 98. h6+ {
[%emt 0:00:05]} Kh7 {[%emt 0:00:02]} 99. Qd3+ {[%emt 0:00:03]} Kh8 {[%emt 0:00:
10]} 100. Qd4+ {[%emt 0:00:04]} Kh7 {[%emt 0:00:13]} 101. Qe4+ {[%emt 0:00:10]}
Kh8 {[%emt 0:00:01]} 102. Kg3 {[%emt 0:00:20]} Qc7+ {[%emt 0:00:31]} 103. Qf4 {
[%emt 0:00:05]} Qd7 {[%emt 0:00:16]} 104. Kh4 {[%emt 0:00:07]} Qb7 {[%emt 0:00:
15]} 105. Qf8+ {[%emt 0:01:29]} Kh7 {[%emt 0:00:02]} 106. Qf5+ {[%emt 0:00:01]}
Kh8 {[%emt 0:00:01]} 107. Kh5 {[%emt 0:00:57]} Qf7+ {[%emt 0:00:08]} 108. Kg4 {
[%emt 0:00:02]} Qc4+ {[%emt 0:00:06]} 109. Kg3 {[%emt 0:00:09]} Qc3+ {[%emt 0:
00:22]} 110. Qf3 {[%emt 0:00:09]} Qe5+ {[%emt 0:00:11]} 111. Kh4 {[%emt 0:00:
43]} Qh2+ {[%emt 0:00:13]} 112. Kg4 {[%emt 0:00:03]} Qc7 {[%emt 0:00:10]} 113.
Qe4 {[%emt 0:00:34]} Qd7+ {[%emt 0:00:07]} 114. Kh4 {[%emt 0:00:05]} Qf7 {
[%emt 0:00:08]} 115. Qd4+ {[%emt 0:00:14]} Kh7 {[%emt 0:00:05]} 116. Qd3+ {
[%emt 0:00:38]} Kh8 {[%emt 0:00:01]} 117. Qc3+ {[%emt 0:00:02]} Kh7 {[%emt 0:
00:01]} 118. Qc2+ {[%emt 0:00:03]} Kh8 {[%emt 0:00:02]} 119. Kg3 {[%emt 0:00:
04]} Qd7 {[%emt 0:00:35]} 120. Qe2 {[%emt 0:00:34]} Qd6+ {[%emt 0:00:10]} 121.
Kg4 {[%emt 0:00:10]} Qd7+ {[%emt 0:00:04]} 122. Kh4 {[%emt 0:00:02]} Qf7 {
[%emt 0:00:09]} 123. Qe5+ {[%emt 0:00:29]} Kh7 {[%emt 0:00:01]} 124. Qe4+ {
[%emt 0:00:08]} Kh8 {[%emt 0:00:02]} 1/2-1/2